[Event "AUT-ch Open 2020"]
[Site "Graz"]
[Date "2020.02.15"]
[Round "2.14"]
[White "Schoppen, Casper"]
[Black "Baum, Jonasz"]
[Result "1-0"]
[ECO "E17"]
[WhiteElo "2489"]
[BlackElo "2489"]
[Annotator "ChessBase"]
[PlyCount "149"]
[EventDate "2020.02.14"]
[EventType "swiss"]
[EventCountry "AUT"]
[SourceTitle "playchess.com"]
[Source "ChessBase"]
[SourceQuality "1"]
[TimeControl "40/5400+30:1800+30"]

1. d4 {[%emt 0:00:01]} Nf6 {[%emt 0:00:00]} 2. c4 {[%emt 0:00:15]} e6 {[%emt 0:00:00]} 3. Nf3 {[%emt 0:01:32]} b6 {[%emt 0:00:01]} 4. g3 {[%emt 0:00:17]} Bb7 {[%emt 0:00:05]} 5. Bg2 {[%emt 0:00:09]} Be7 {[%emt 0:00:05]} 6. O-O {[%emt 0:00:08]} O-O {[%emt 0:00:02]} 7. Re1 {[%emt 0:03:22]} d5 {[%emt 0:00:36]} 8. cxd5 {[%emt 0:00:24]} exd5 {[%emt 0:00:06]} 9. Nc3 {[%emt 0:00:36]} Nbd7 {[%emt 0:00:44]} 10. b3 {[%emt 0:03:59]} Ne4 {[%emt 0:02:42]} 11. Bb2 {[%emt 0:03:21]} Rc8 {[%emt 0:02:07]} 12. Nd2 {[%emt 0:04:47]} Ndf6 {[%emt 0:07:25]} 13. Qc2 {[%emt 0:18:37]} c5 {[%emt 0:27:57]} 14. Ncxe4 {[%emt 0:04:23]} dxe4 {[%emt 0:00:24]} 15. Nxe4 {[%emt 0:03:41]} cxd4 {[%emt 0:00:33]} 16. Qd3 {[%emt 0:00:25]} Nxe4 {[%emt 0:00:55]} 17. Bxe4 {[%emt 0:00:07]} Bxe4 {[%emt 0:00:06]} 18. Qxe4 {[%emt 0:00:05]} Bf6 {[%emt 0:11:44]} 19. Rad1 {[%emt 0:02:36]} Re8 {[%emt 0:00:32]} 20. Qd3 {[%emt 0:01:15]} h6 {[%emt 0:01:46]} 21. Rd2 {[%emt 0:08:49]} Bg5 {[%emt 0:11:43]} 22. Rdd1 {[%emt 0:00:58]} Bf6 {[%emt 0:00:13]} 23. a4 {[%emt 0:00:33]} Qe7 {[%emt 0:12:21]} 24. Bxd4 {[%emt 0:06:17]} Bxd4 {[%emt 0:00:10]} 25. Qxd4 {[%emt 0:00:05]} Rcd8 {[%emt 0:00:04]} 26. Qa1 {[%emt 0:01:42]} Rxd1 {[%emt 0:04:39]} 27. Qxd1 {[%emt 0:00:09]} Qb4 {[%emt 0:00:07]} 28. e3 {[%emt 0:01:57]} Rc8 {[%emt 0:01:26]} 29. Qb1 {[%emt 0:02:11]} g6 {[%emt 0:05:50]} 30. Rd1 {[%emt 0:01:46]} Rc3 {[%emt 0:01:34]} 31. Rd8+ {[%emt 0:03:15]} Kh7 {[%emt 0:00:09]} 32. Qd1 {[%emt 0:06:45]} Qe4 {[%emt 0:03:42]} 33. Rd7 {[%emt 0:06:47]} Qc6 {[%emt 0:00:53]} 34. Rxf7+ {[%emt 0:01:16]} Kg8 {[%emt 0:00:06]} 35. Qf3 {[%emt 0:00:46]} Qxf3 {[%emt 0:00:18]} 36. Rxf3 {[%emt 0:00:07]} Rxb3 {[%emt 0:00:09]} 37. Rf6 {[%emt 0:02:53]} Kg7 {[%emt 0:00:09]} 38. Rc6 {[%emt 0:00:20]} a5 {[%emt 0:00:21]} 39. h4 {[%emt 0:01:36]} Rb4 {[%emt 0:01:48]} 40. Kg2 {[%emt 0:02:33]} g5 {[%emt 0:01:01]} 41. hxg5 {[%emt 0:11:33]} hxg5 {[%emt 0:00:00]} 42. Kh3 {[%emt 0:01:19]} g4+ {[%emt 0:01:54]} 43. Kh4 {[%emt 0:00:26]} Rxa4 {[%emt 0:01:54]} 44. Rxb6 {[%emt 0:00:18]} Ra2 {[%emt 0:05:33]} 45. Ra6 {[%emt 0:00:52]} Rxf2 {[%emt 0:00:13]} 46. Rxa5 {[%emt 0:00:07]} Re2 {[%emt 0:00:06]} 47. Ra3 {[%emt 0:00:20]} Kf6 {[%emt 0:00:14]} 48. Kxg4 {[%emt 0:00:07]} Re1 {[%emt 0:00:37]} 49. Kf3 {[%emt 0:01:31]} Rf1+ {[%emt 0:00:14]} 50. Kg2 {[%emt 0:00:14]} Rb1 {[%emt 0:00:31]} 51. Ra5 {[%emt 0:00:41]} Rc1 {[%emt 0:00:10]} 52. g4 {[%emt 0:00:43]} Rb1 {[%emt 0:00:12]} 53. Rf5+ {[%emt 0:01:17]} Kg6 {[%emt 0:00:27]} 54. Ra5 {[%emt 0:08:54]} Kf6 {[%emt 0:03:42]} 55. Kf3 {[%emt 0:02:43]} Rf1+ {[%emt 0:00:43]} 56. Ke4 {[%emt 0:00:09]} Rg1 {[%emt 0:00:06]} 57. Rf5+ {[%emt 0:01:15]} Kg6 {[%emt 0:04:18]} 58. Kf4 {[%emt 0:00:44]} Rf1+ {[%emt 0:00:29]} 59. Ke5 {[%emt 0:00:10]} Rg1 {[%emt 0:00:08]} 60. g5 {[%emt 0:02:59]} Rb1 {[%emt 0:07:13]} 61. e4 {[%emt 0:00:51]} Ra1 {[%emt 0:01:15]} 62. Rf8 {[%emt 0:01:01]} Kxg5 {[%emt 0:00:20]} 63. Rg8+ {[%emt 0:00:07]} Kh6 {[%emt 0:00:48]} 64. Kf6 {[%emt 0:00:53]} Kh7 {[%emt 0:02:18]} 65. Rg2 {[%emt 0:00:17]} Rf1+ {[%emt 0:07:53]} 66. Ke6 {[%emt 0:00:24]} Ra1 {[%emt 0:00:35]} 67. e5 {[%emt 0:00:12]} Rd1 {[%emt 0:00:13]} 68. Kf6 {[%emt 0:00:24]} Rf1+ {[%emt 0:00:07]} 69. Ke7 {[%emt 0:00:04]} Rd1 {[%emt 0:00:05]} 70. e6 {[%emt 0:00:08]} Rd3 {[%emt 0:00:45]} 71. Ke8 {[%emt 0:00:45]} Rd1 {[%emt 0:02:38]} 72. e7 {[%emt 0:00:31]} Rd3 {[%emt 0:01:26]} 73. Rg4 {[%emt 0:00:09]} Kh6 {[%emt 0:01:40]} 74. Kf7 {[%emt 0:00:12]} Kh5 {[%emt 0:00:26]} 75. Re4 {[%emt 0:00:37]} 1-0

[Event "AUT-ch Open 2020"]
[Site "Graz"]
[Date "2020.02.15"]
[Round "2.15"]
[White "Diermair, Andreas"]
[Black "Manush Shah"]
[Result "1-0"]
[ECO "D02"]
[WhiteElo "2483"]
[BlackElo "2322"]
[Annotator "ChessBase"]
[PlyCount "99"]
[EventDate "2020.02.14"]
[EventType "swiss"]
[EventCountry "AUT"]
[SourceTitle "playchess.com"]
[Source "ChessBase"]
[SourceQuality "1"]
[TimeControl "40/5400+30:1800+30"]

1. d4 d5 {[%emt 0:00:23]} 2. Nf3 {[%emt 0:00:00]} Nf6 {[%emt 0:00:07]} 3. g3 {[%emt 0:00:07]} c6 {[%emt 0:00:28]} 4. Bg2 {[%emt 0:00:26]} Bg4 {[%emt 0:00:12]} 5. c4 {[%emt 0:00:37]} e6 {[%emt 0:00:38]} 6. O-O {[%emt 0:00:14]} Nbd7 {[%emt 0:00:18]} 7. h3 {[%emt 0:00:33]} Bh5 {[%emt 0:02:46]} 8. cxd5 {[%emt 0:00:36]} cxd5 {[%emt 0:03:32]} 9. Nc3 {[%emt 0:01:42]} Bd6 {[%emt 0:01:21]} 10. Qb3 {[%emt 0:18:45]} Qb6 {[%emt 0:06:39]} 11. Qxb6 {[%emt 0:00:59]} Nxb6 {[%emt 0:00:14]} 12. g4 {[%emt 0:00:46]} Bg6 {[%emt 0:00:36]} 13. Nb5 {[%emt 0:04:51]} Bb8 {[%emt 0:00:55]} 14. Ne5 {[%emt 0:00:36]} a6 {[%emt 0:00:27]} 15. Nc3 {[%emt 0:00:26]} Nfd7 {[%emt 0:06:14]} 16. Nxg6 {[%emt 0:02:10]} hxg6 {[%emt 0:00:03]} 17. b3 {[%emt 0:01:53]} O-O {[%emt 0:04:10]} 18. Ba3 {[%emt 0:02:09]} Rc8 {[%emt 0:05:22]} 19. Rac1 {[%emt 0:00:13]} Ba7 {[%emt 0:01:22]} 20. e4 {[%emt 0:07:56]} Nf6 {[%emt 0:08:57]} 21. Bc5 {[%emt 0:05:54]} Nfd7 {[%emt 0:04:18]} 22. exd5 {[%emt 0:18:52]} Nxc5 {[%emt 0:03:04]} 23. dxc5 {[%emt 0:00:09]} Nxd5 {[%emt 0:00:39]} 24. Nxd5 {[%emt 0:01:01]} exd5 {[%emt 0:00:10]} 25. b4 {[%emt 0:08:31]} Rc7 {[%emt 0:02:37]} 26. Rfd1 {[%emt 0:01:30]} Rd8 {[%emt 0:03:35]} 27. Rxd5 {[%emt 0:00:11]} Rxd5 {[%emt 0:00:31]} 28. Bxd5 {[%emt 0:00:02]} g5 {[%emt 0:02:01]} 29. Be4 {[%emt 0:04:28]} Kf8 {[%emt 0:09:45]} 30. Rd1 {[%emt 0:01:17]} Ke7 {[%emt 0:00:14]} 31. Kf1 {[%emt 0:01:24]} b6 {[%emt 0:08:21]} 32. c6 {[%emt 0:00:32]} b5 {[%emt 0:00:17]} 33. Bf5 {[%emt 0:08:27]} Bb6 {[%emt 0:02:06]} 34. Bd7 {[%emt 0:00:06]} Ra7 {[%emt 0:01:21]} 35. Rd5 {[%emt 0:00:11]} f6 {[%emt 0:00:26]} 36. Bc8 {[%emt 0:02:11]} Rc7 {[%emt 0:02:24]} 37. Bd7 {[%emt 0:00:34]} Ra7 {[%emt 0:01:06]} 38. a3 {[%emt 0:00:08]} Ra8 {[%emt 0:01:54]} 39. Kg2 {[%emt 0:03:05]} Bc7 {[%emt 0:03:03]} 40. Kf3 {[%emt 0:00:58]} Bd6 {[%emt 0:04:33]} 41. Ke4 {[%emt 0:33:49]} g6 {[%emt 0:33:08]} 42. Rd3 {[%emt 0:00:00]} Be5 {[%emt 0:00:00]} 43. Kd5 {[%emt 0:00:00]} Rd8 {[%emt 0:00:00]} 44. Re3 {[%emt 0:00:00]} Ra8 {[%emt 0:00:00]} 45. h4 {[%emt 0:00:00]} Kd8 {[%emt 0:00:00]} 46. Rxe5 {[%emt 0:00:00]} fxe5 {[%emt 0:00:00]} 47. Kd6 {[%emt 0:00:00]} Ra7 {[%emt 0:00:00]} 48. h5 {[%emt 0:00:00]} a5 {[%emt 0:00:00]} 49. hxg6 {[%emt 0:00:00]} axb4 {[%emt 0:00:00]} 50. g7 {[%emt 0:00:00]} 1-0

[Event "AUT-ch Open 2020"]
[Site "Graz"]
[Date "2020.02.15"]
[Round "2.16"]
[White "Godzwon, Iwo"]
[Black "Yankelevich, Lev"]
[Result "1-0"]
[ECO "B32"]
[WhiteElo "2321"]
[BlackElo "2473"]
[Annotator "ChessBase"]
[PlyCount "121"]
[EventDate "2020.02.14"]
[EventType "swiss"]
[EventCountry "AUT"]
[SourceTitle "playchess.com"]
[Source "ChessBase"]
[SourceQuality "1"]
[TimeControl "40/5400+30:1800+30"]

1. e4 {[%emt 0:00:00]} c5 {[%emt 0:00:00]} 2. Nf3 {[%emt 0:00:00]} Nc6 {[%emt 0:00:00]} 3. d4 {[%emt 0:00:00]} cxd4 {[%emt 0:00:00]} 4. Nxd4 {[%emt 0:00:00]} e5 {[%emt 0:00:00]} 5. Nb5 {[%emt 0:00:00]} d6 {[%emt 0:00:00]} 6. c4 {[%emt 0:00:09]} Be6 {[%emt 0:00:21]} 7. N1c3 {[%emt 0:01:32]} a6 {[%emt 0:00:05]} 8. Na3 {[%emt 0:00:03]} Rc8 {[%emt 0:01:33]} 9. Be3 {[%emt 0:11:19]} Nf6 {[%emt 0:01:00]} 10. Be2 {[%emt 0:00:23]} g6 {[%emt 0:12:39]} 11. f3 {[%emt 0:18:48]} Bg7 {[%emt 0:00:46]} 12. Nc2 {[%emt 0:15:43]} Ne7 {[%emt 0:14:54]} 13. b3 {[%emt 0:08:48]} b5 {[%emt 0:03:13]} 14. Nd5 {[%emt 0:00:04]} bxc4 {[%emt 0:05:53]} 15. bxc4 {[%emt 0:00:25]} Nd7 {[%emt 0:07:39]} 16. Ncb4 {[%emt 0:03:21]} a5 {[%emt 0:08:45]} 17. Nxe7 {[%emt 0:00:29]} Qxe7 {[%emt 0:00:15]} 18. Nd5 {[%emt 0:00:37]} Qh4+ {[%emt 0:01:31]} 19. Bf2 {[%emt 0:02:57]} Qd8 {[%emt 0:00:35]} 20. Rb1 {[%emt 0:05:38]} O-O {[%emt 0:03:44]} 21. O-O {[%emt 0:00:17]} Nc5 {[%emt 0:01:45]} 22. Qd2 {[%emt 0:07:59]} f5 {[%emt 0:10:53]} 23. exf5 {[%emt 0:01:02]} gxf5 {[%emt 0:00:05]} 24. Rb5 {[%emt 0:00:25]} a4 {[%emt 0:09:03]} 25. Rd1 {[%emt 0:00:42]} Nd7 {[%emt 0:09:48]} 26. Nb4 {[%emt 0:03:58]} Nf6 {[%emt 0:02:22]} 27. Rb6 {[%emt 0:03:07]} Bxc4 {[%emt 0:00:53]} 28. Nc6 {[%emt 0:00:29]} Rxc6 {[%emt 0:01:51]} 29. Rxc6 {[%emt 0:00:04]} Bd5 {[%emt 0:00:21]} 30. Ra6 {[%emt 0:01:50]} Qd7 {[%emt 0:02:29]} 31. Bh4 {[%emt 0:01:12]} Bf7 {[%emt 0:01:43]} 32. Rxd6 {[%emt 0:00:05]} Qa7+ {[%emt 0:00:02]} 33. Bf2 {[%emt 0:01:30]} Qc7 {[%emt 0:00:20]} 34. Rd8 {[%emt 0:01:25]} h6 {[%emt 0:00:36]} 35. a3 {[%emt 0:02:27]} Kh7 {[%emt 0:00:37]} 36. Rxf8 {[%emt 0:00:35]} Bxf8 {[%emt 0:00:02]} 37. Rc1 {[%emt 0:00:04]} Qe7 {[%emt 0:01:14]} 38. Bc5 {[%emt 0:00:29]} Qxc5+ {[%emt 0:00:03]} 39. Rxc5 {[%emt 0:00:04]} Bxc5+ {[%emt 0:00:03]} 40. Kh1 {[%emt 0:00:28]} Bxa3 {[%emt 0:01:04]} 41. Qc2 {[%emt 0:32:48]} Kg7 {[%emt 0:05:28]} 42. Qxa4 {[%emt 0:00:00]} Bc5 {[%emt 0:00:27]} 43. Qc2 {[%emt 0:00:00]} Bd4 {[%emt 0:01:18]} 44. Qxf5 {[%emt 0:00:00]} Bg6 {[%emt 0:00:36]} 45. Qe6 {[%emt 0:00:00]} Bf7 {[%emt 0:00:13]} 46. Qc6 {[%emt 0:00:00]} h5 {[%emt 0:00:16]} 47. g3 {[%emt 0:00:00]} Bd5 {[%emt 0:02:18]} 48. Qc7+ {[%emt 0:00:00]} Kf8 {[%emt 0:00:05]} 49. Qd6+ {[%emt 0:00:00]} Kf7 {[%emt 0:00:03]} 50. Bc4 {[%emt 0:00:00]} Bxc4 {[%emt 0:00:17]} 51. Qc7+ {[%emt 0:00:00]} Kg6 {[%emt 0:00:24]} 52. Qxc4 {[%emt 0:00:00]} Kf5 {[%emt 0:00:46]} 53. Kg2 {[%emt 0:00:00]} Kg6 {[%emt 0:00:14]} 54. Qe6 {[%emt 0:00:00]} Ba1 {[%emt 0:00:20]} 55. h4 {[%emt 0:00:00]} Kg7 {[%emt 0:00:37]} 56. g4 {[%emt 0:00:00]} e4 {[%emt 0:00:03]} 57. g5 {[%emt 0:00:00]} exf3+ {[%emt 0:00:05]} 58. Kxf3 {[%emt 0:00:00]} Ng4 {[%emt 0:00:08]} 59. Qe7+ {[%emt 0:00:00]} Kg6 {[%emt 0:00:15]} 60. Qe8+ {[%emt 0:00:00]} Kf5 {[%emt 0:00:04]} 61. Qf7+ {[%emt 0:00:00] Ke4+ Kxe4} 1-0

[Event "AUT-ch Open 2020"]
[Site "Graz"]
[Date "2020.02.15"]
[Round "2.16"]
[White "Kravanja, Georg"]
[Black "Zverev, Lev"]
[Result "1-0"]
[ECO "E06"]
[WhiteElo "2262"]
[BlackElo "1914"]
[Annotator "ChessBase"]
[PlyCount "137"]
[EventDate "2020.02.14"]
[EventType "swiss"]
[EventCountry "AUT"]
[SourceTitle "playchess.com"]
[Source "ChessBase"]
[SourceQuality "1"]
[TimeControl "40/5400+30:1800+30"]

1. Nf3 {[%emt 0:00:00]} d5 {[%emt 0:00:00]} 2. g3 {[%emt 0:00:00]} e6 {[%emt 0:00:29]} 3. Bg2 {[%emt 0:00:00]} Nf6 {[%emt 0:00:18]} 4. O-O {[%emt 0:00:00]} Be7 {[%emt 0:00:11]} 5. d4 {[%emt 0:00:00]} O-O {[%emt 0:00:06]} 6. c4 {[%emt 0:00:01]} c6 {[%emt 0:01:11]} 7. Qc2 {[%emt 0:00:10]} b6 {[%emt 0:00:05]} 8. Nbd2 {[%emt 0:00:06]} Bb7 {[%emt 0:00:08]} 9. e4 {[%emt 0:00:06]} Na6 {[%emt 0:00:04]} 10. Re1 {[%emt 0:03:36]} Rc8 {[%emt 0:01:26]} 11. e5 {[%emt 0:01:32]} Nd7 {[%emt 0:00:05]} 12. a3 {[%emt 0:02:21]} c5 {[%emt 0:00:23]} 13. dxc5 {[%emt 0:01:12]} Naxc5 {[%emt 0:00:25]} 14. b4 {[%emt 0:00:45]} Na6 {[%emt 0:02:16]} 15. Nd4 {[%emt 0:02:00]} Qc7 {[%emt 0:00:41]} 16. cxd5 {[%emt 0:17:57]} Qxc2 {[%emt 0:00:11]} 17. Nxc2 {[%emt 0:00:01]} Rxc2 {[%emt 0:00:09]} 18. d6 {[%emt 0:00:02]} Bxg2 {[%emt 0:01:47]} 19. dxe7 {[%emt 0:00:06]} Re8 {[%emt 0:00:05]} 20. Kxg2 {[%emt 0:00:05]} Rxe7 {[%emt 0:00:07]} 21. Nf3 {[%emt 0:00:10]} Nc7 {[%emt 0:00:42]} 22. Bg5 {[%emt 0:01:03]} Re8 {[%emt 0:03:18]} 23. Nd4 {[%emt 0:06:09]} Rc4 {[%emt 0:00:18]} 24. Rac1 {[%emt 0:00:15]} Rxc1 {[%emt 0:00:13]} 25. Rxc1 {[%emt 0:00:05]} Nd5 {[%emt 0:00:16]} 26. Nb5 {[%emt 0:02:27]} Nxe5 {[%emt 0:00:24]} 27. Nxa7 {[%emt 0:00:20]} h6 {[%emt 0:00:08]} 28. Be3 {[%emt 0:01:26]} Ra8 {[%emt 0:05:02]} 29. Nb5 {[%emt 0:04:22]} Kh7 {[%emt 0:03:29]} 30. Bd4 {[%emt 0:03:33]} Nd7 {[%emt 0:00:06]} 31. Rc6 {[%emt 0:00:51]} e5 {[%emt 0:01:37]} 32. Rd6 {[%emt 0:01:36]} N5f6 {[%emt 0:01:10]} 33. Be3 {[%emt 0:03:36]} Rc8 {[%emt 0:00:08]} 34. h3 {[%emt 0:00:33]} Rc2 {[%emt 0:00:55]} 35. Kf3 {[%emt 0:02:39]} Ra2 {[%emt 0:01:36]} 36. g4 {[%emt 0:01:31]} e4+ {[%emt 0:02:07]} 37. Kg3 {[%emt 0:01:27]} Ne5 {[%emt 0:00:26]} 38. Rxb6 {[%emt 0:01:04]} Nc4 {[%emt 0:00:04]} 39. Rb7 {[%emt 0:04:21]} Nxe3 {[%emt 0:00:45]} 40. fxe3 {[%emt 0:00:07]} Nd5 {[%emt 0:00:04]} 41. Rxf7 {[%emt 0:30:40]} Nxe3 {[%emt 0:30:05]} 42. Rf2 {[%emt 0:07:21]} Ra1 {[%emt 0:00:12]} 43. Kf4 {[%emt 0:00:16]} Re1 {[%emt 0:01:11]} 44. Nc3 {[%emt 0:03:24]} g5+ {[%emt 0:00:20]} 45. Ke5 {[%emt 0:01:06]} Nc4+ {[%emt 0:00:25]} 46. Kd4 {[%emt 0:02:07]} Nxa3 {[%emt 0:03:25]} 47. Nxe4 {[%emt 0:02:25]} Rc1 {[%emt 0:00:16]} 48. Nf6+ {[%emt 0:01:51]} Kg6 {[%emt 0:00:09]} 49. Nd5 {[%emt 0:00:13]} Nb5+ {[%emt 0:00:18]} 50. Ke3 {[%emt 0:02:23]} Rc4 {[%emt 0:00:49]} 51. Rf6+ {[%emt 0:00:44]} Kg7 {[%emt 0:00:04]} 52. Rb6 {[%emt 0:00:18]} Na3 {[%emt 0:00:19]} 53. Kd3 {[%emt 0:06:13]} Rc1 {[%emt 0:00:08]} 54. Ne3 {[%emt 0:01:41]} h5 {[%emt 0:01:53]} 55. gxh5 {[%emt 0:00:19]} Rh1 {[%emt 0:00:04]} 56. Ra6 {[%emt 0:01:18]} Nb5 {[%emt 0:00:09]} 57. Ra5 {[%emt 0:00:23]} Nd6 {[%emt 0:00:16]} 58. Rxg5+ {[%emt 0:00:10]} Kh7 {[%emt 0:00:05]} 59. Rd5 {[%emt 0:00:15]} Nf7 {[%emt 0:00:05]} 60. b5 {[%emt 0:05:33]} Rxh3 {[%emt 0:00:35]} 61. b6 {[%emt 0:00:21]} Rh4 {[%emt 0:00:53]} 62. Nc4 {[%emt 0:04:17]} Rh1 {[%emt 0:00:30]} 63. Kc2 {[%emt 0:03:01]} Rh2+ {[%emt 0:01:34]} 64. Nd2 {[%emt 0:01:12]} Rh4 {[%emt 0:00:10]} 65. Kb3 {[%emt 0:00:05]} Rg4 {[%emt 0:02:07]} 66. Rd7 {[%emt 0:02:19]} Rg5 {[%emt 0:00:07]} 67. Rxf7+ {[%emt 0:00:15]} Kg8 {[%emt 0:00:05]} 68. Rf6 {[%emt 0:00:15]} Kg7 {[%emt 0:00:12]} 69. Rg6+ {[%emt 0:00:09]} 1-0

[Event "AUT-ch Open 2020"]
[Site "Graz"]
[Date "2020.02.15"]
[Round "2.17"]
[White "Froewis, Georg"]
[Black "Rieger, Robert"]
[Result "1-0"]
[ECO "A05"]
[WhiteElo "2461"]
[BlackElo "2320"]
[Annotator "ChessBase"]
[PlyCount "79"]
[EventDate "2020.02.14"]
[EventType "swiss"]
[EventCountry "AUT"]
[SourceTitle "playchess.com"]
[Source "ChessBase"]
[SourceQuality "1"]
[TimeControl "40/5400+30:1800+30"]

1. Nf3 {[%emt 0:00:00]} Nf6 {[%emt 0:00:00]} 2. c4 {[%emt 0:00:00]} e6 {[%emt 0:00:00]} 3. b3 {[%emt 0:01:37]} b6 {[%emt 0:00:10]} 4. g3 {[%emt 0:00:31]} Bb7 {[%emt 0:00:32]} 5. Bg2 {[%emt 0:00:05]} c5 {[%emt 0:01:07]} 6. O-O {[%emt 0:00:45]} Be7 {[%emt 0:00:06]} 7. Bb2 {[%emt 0:00:16]} O-O {[%emt 0:00:30]} 8. Nc3 {[%emt 0:00:55]} a6 {[%emt 0:01:22]} 9. d4 {[%emt 0:04:13]} cxd4 {[%emt 0:04:54]} 10. Qxd4 {[%emt 0:00:07]} d6 {[%emt 0:03:14]} 11. Rfd1 {[%emt 0:00:42]} Qc7 {[%emt 0:02:38]} 12. Rac1 {[%emt 0:01:33]} Nbd7 {[%emt 0:02:35]} 13. Ne1 {[%emt 0:09:48]} Rfd8 {[%emt 0:07:21]} 14. Bxb7 {[%emt 0:02:44]} Qxb7 {[%emt 0:00:10]} 15. Ng2 {[%emt 0:00:10]} b5 {[%emt 0:07:49]} 16. Ne3 {[%emt 0:00:05]} Ne5 {[%emt 0:05:52]} 17. Nb1 {[%emt 0:08:18]} b4 {[%emt 0:11:52]} 18. Nd2 {[%emt 0:03:40]} a5 {[%emt 0:01:58]} 19. Qf4 {[%emt 0:01:39]} Ned7 {[%emt 0:06:52]} 20. Qf3 {[%emt 0:06:25]} Qb6 {[%emt 0:03:23]} 21. Ne4 {[%emt 0:02:43]} Nxe4 {[%emt 0:02:34]} 22. Qxe4 {[%emt 0:00:03]} Nc5 {[%emt 0:04:52]} 23. Qg4 Bf8 {[%emt 0:00:37]} 24. Bf6 {[%emt 0:07:07]} Rd7 {[%emt 0:03:31]} 25. Bd4 {[%emt 0:00:07]} f5 {[%emt 0:05:56]} 26. Qf3 {[%emt 0:00:35]} Re8 {[%emt 0:03:41]} 27. g4 {[%emt 0:07:23]} fxg4 {[%emt 0:03:00]} 28. Qxg4 {[%emt 0:00:20]} Rf7 {[%emt 0:00:36]} 29. Nf1 {[%emt 0:02:59]} Qc6 {[%emt 0:02:03]} 30. Ng3 {[%emt 0:00:31]} a4 {[%emt 0:02:31]} 31. Bxc5 {[%emt 0:05:56]} Qxc5 {[%emt 0:00:29]} 32. e3 {[%emt 0:00:10]} axb3 {[%emt 0:02:04]} 33. axb3 {[%emt 0:00:01]} Ra7 {[%emt 0:02:32]} 34. Rd3 {[%emt 0:06:44]} Ra2 {[%emt 0:02:59]} 35. Rcd1 {[%emt 0:00:52]} Qe5 {[%emt 0:00:35]} 36. Ne4 {[%emt 0:04:42]} Rb2 {[%emt 0:03:06]} 37. Kg2 {[%emt 0:13:08]} Qf5 {[%emt 0:02:52]} 38. Qxf5 {[%emt 0:09:34]} exf5 {[%emt 0:00:02]} 39. Nxd6 {[%emt 0:00:42]} Bxd6 {[%emt 0:00:12]} 40. Rxd6 {[%emt 0:00:02]} 1-0

[Event "AUT-ch Open 2020"]
[Site "Graz"]
[Date "2020.02.15"]
[Round "2.17"]
[White "Mayrhuber, Nikola"]
[Black "Schernthaner, David"]
[Result "1/2-1/2"]
[ECO "A48"]
[WhiteElo "2017"]
[BlackElo "2262"]
[Annotator "ChessBase"]
[PlyCount "64"]
[EventDate "2020.02.14"]
[EventType "swiss"]
[EventCountry "AUT"]
[SourceTitle "playchess.com"]
[Source "ChessBase"]
[SourceQuality "1"]
[TimeControl "40/5400+30:1800+30"]

1. d4 {[%emt 0:00:00]} Nf6 {[%emt 0:00:00]} 2. Nf3 {[%emt 0:00:00]} g6 {[%emt 0:00:00]} 3. Bg5 {[%emt 0:00:00]} Ne4 {[%emt 0:00:54]} 4. Bh4 {[%emt 0:07:15]} Bg7 {[%emt 0:02:23]} 5. Nbd2 {[%emt 0:03:59]} d5 {[%emt 0:01:50]} 6. c3 {[%emt 0:01:50]} c5 {[%emt 0:04:33]} 7. Nxe4 {[%emt 0:17:43]} dxe4 {[%emt 0:00:12]} 8. Nd2 {[%emt 0:08:19]} cxd4 {[%emt 0:01:13]} 9. Nxe4 {[%emt 0:02:15]} Bf5 {[%emt 0:11:43]} 10. Nc5 {[%emt 0:11:22]} b6 {[%emt 0:17:05]} 11. e4 {[%emt 0:07:42]} dxe3 {[%emt 0:05:23]} 12. Bb5+ {[%emt 0:04:59]} Nd7 {[%emt 0:00:55]} 13. Nxd7 {[%emt 0:16:23]} Bxd7 {[%emt 0:01:24]} 14. Bxd7+ {[%emt 0:00:51]} Qxd7 {[%emt 0:00:10]} 15. Qxd7+ {[%emt 0:00:11]} Kxd7 {[%emt 0:00:06]} 16. fxe3 {[%emt 0:01:07]} Ke6 {[%emt 0:00:39]} 17. Ke2 {[%emt 0:02:29]} Rhd8 {[%emt 0:00:16]} 18. Rad1 {[%emt 0:00:46]} Be5 {[%emt 0:02:13]} 19. h3 {[%emt 0:01:57]} f6 {[%emt 0:02:24]} 20. e4 {[%emt 0:00:16]} Rac8 {[%emt 0:03:25]} 21. Kf3 {[%emt 0:02:18]} b5 {[%emt 0:01:46]} 22. Bg3 {[%emt 0:02:16]} Bxg3 {[%emt 0:01:21]} 23. Kxg3 {[%emt 0:00:04]} Ke5 {[%emt 0:00:35]} 24. Kf3 {[%emt 0:00:39]} h5 {[%emt 0:01:12]} 25. Rhe1 {[%emt 0:00:28]} a6 {[%emt 0:00:34]} 26. Rd5+ {[%emt 0:00:55]} Ke6 {[%emt 0:02:56]} 27. h4 {[%emt 0:00:39]} Rd6 {[%emt 0:00:56]} 28. Rxd6+ {[%emt 0:01:27]} Kxd6 {[%emt 0:00:06]} 29. Rd1+ {[%emt 0:00:19]} Ke6 {[%emt 0:00:09]} 30. Kf4 {[%emt 0:00:22]} Rc6 {[%emt 0:01:04]} 31. Rd8 {[%emt 0:04:55]} Rd6 {[%emt 0:02:31]} 32. Ra8 {[%emt 0:00:04]} Rc6 {[%emt 0:10:08]} 1/2-1/2

[Event "AUT-ch Open 2020"]
[Site "Graz"]
[Date "2020.02.15"]
[Round "2.18"]
[White "Janzelj, Tim"]
[Black "Li, Henry"]
[Result "1-0"]
[ECO "A05"]
[WhiteElo "2451"]
[BlackElo "2310"]
[Annotator "ChessBase"]
[PlyCount "81"]
[EventDate "2020.02.14"]
[EventType "swiss"]
[EventCountry "AUT"]
[SourceTitle "playchess.com"]
[Source "ChessBase"]
[SourceQuality "1"]
[TimeControl "40/5400+30:1800+30"]

1. Nf3 {[%emt 0:02:51]} Nf6 {[%emt 0:00:31]} 2. c4 {[%emt 0:00:37]} g6 {[%emt 0:00:19]} 3. b4 {[%emt 0:00:14]} Bg7 {[%emt 0:05:28]} 4. Bb2 {[%emt 0:00:14]} O-O {[%emt 0:02:15]} 5. g3 {[%emt 0:00:09]} a5 {[%emt 0:02:44]} 6. b5 {[%emt 0:01:28]} d6 {[%emt 0:01:36]} 7. Bg2 {[%emt 0:00:23]} e5 {[%emt 0:01:09]} 8. d3 {[%emt 0:00:06]} e4 {[%emt 0:05:47]} 9. dxe4 {[%emt 0:00:40]} Nxe4 {[%emt 0:00:32]} 10. Bxg7 {[%emt 0:00:14]} Kxg7 {[%emt 0:00:08]} 11. Nd4 {[%emt 0:02:49]} Re8 {[%emt 0:05:43]} 12. Nd2 {[%emt 0:06:12]} Nxd2 {[%emt 0:09:10]} 13. Qxd2 {[%emt 0:00:02]} Nd7 {[%emt 0:00:47]} 14. O-O {[%emt 0:01:14]} a4 {[%emt 0:03:51]} 15. Rfd1 {[%emt 0:03:48]} Qf6 {[%emt 0:12:34]} 16. Nc2 {[%emt 0:03:34]} Qe5 {[%emt 0:14:17]} 17. Ne3 {[%emt 0:01:20]} Nb6 {[%emt 0:03:01]} 18. Rac1 {[%emt 0:03:29]} Rb8 {[%emt 0:09:15]} 19. Qb4 {[%emt 0:11:29]} Qc5 {[%emt 0:02:08]} 20. Qc3+ {[%emt 0:00:10]} Qe5 {[%emt 0:02:38]} 21. c5 {[%emt 0:02:18]} Qxc3 {[%emt 0:01:31]} 22. Rxc3 {[%emt 0:00:02]} dxc5 {[%emt 0:00:10]} 23. Rxc5 {[%emt 0:00:09]} Be6 {[%emt 0:01:44]} 24. a3 {[%emt 0:05:40]} Red8 {[%emt 0:02:42]} 25. Rxd8 {[%emt 0:03:23]} Rxd8 {[%emt 0:00:01]} 26. Rxc7 {[%emt 0:00:00]} Rc8 {[%emt 0:02:28]} 27. Rxc8 {[%emt 0:05:07]} Bxc8 {[%emt 0:00:01]} 28. Kf1 {[%emt 0:04:33]} Kf6 {[%emt 0:01:20]} 29. Nd5+ {[%emt 0:05:41]} Nxd5 30. Bxd5 {[%emt 0:00:01]} b6 {[%emt 0:04:20]} 31. Ke1 {[%emt 0:04:34]} Bd7 {[%emt 0:00:05]} 32. Bc4 {[%emt 0:04:04]} Ke5 {[%emt 0:04:55]} 33. Kd2 {[%emt 0:05:59]} Kd4 {[%emt 0:00:23]} 34. Bxf7 {[%emt 0:00:14]} Bxb5 {[%emt 0:00:03]} 35. e3+ {[%emt 0:07:26]} Ke4 {[%emt 0:00:26]} 36. f4 {[%emt 0:00:18]} Bc6 {[%emt 0:01:16]} 37. Bg8 {[%emt 0:03:43]} h6 {[%emt 0:00:44]} 38. Bf7 {[%emt 0:00:01]} g5 {[%emt 0:01:29]} 39. Bg6+ {[%emt 0:00:11]} Kf3 {[%emt 0:00:25]} 40. f5 {[%emt 0:01:37]} Be4 {[%emt 0:00:51]} 41. Bh5+ {[%emt 0:30:01]} 1-0